bitfinex/quotes_ETHUSD_20241004
["timestamp","ask_amount","ask_price","bid_price","bid_amount"]
[1728053104259,1.42271957,2370.7,2370.3,8.43745]
[1728053104455,0.798,2370.7,2370.4,4.2186]
[1728053104860,0.798,2370.7,2370.2,4.21894]
[1728053105060,5.01617,2370.7,2370.3,4.21883]
[1728053105261,5.01617,2370.7,2370.1,4.21915]
[1728053105262,4.21855,2370.5,2370.1,4.21915]
[1728053105486,4.21843,2370.6,2370.0,3.0]
[1728053105660,4.720243,2370.5,2370.1,4.2192]
[1728053105859,4.21851,2370.5,2370.1,4.2192]
[1728053106389,4.2186,2370.5,2370.1,4.21921]
[1728053106749,0.798,2370.7,2370.4,4.2186]
[1728053106979,6.23228569,2370.9,2370.4,4.2186]
[1728053107176,5.4165517,2370.8,2370.4,4.2186]
[1728053107451,5.4166017,2370.8,2370.4,4.21869]
[1728053108790,5.4166017,2370.8,2370.3,4.21883]
[1728053108791,4.21817,2370.7,2370.3,4.21883]
[1728053109300,0.8105,2370.5,2370.1,4.21906]
[1728053109449,0.8105,2370.5,2370.2,4.21903]
[1728053109651,0.8105,2370.5,2370.0,7.21936]
[1728053109851,5.02903,2370.5,2370.1,4.21918]
[1728053110096,5.55920177,2370.5,2370.1,4.21918]
[1728053110506,9.77785177,2370.5,2370.1,4.21918]
[1728053110707,5.55920177,2370.5,2370.1,4.21918]
[1728053110991,5.55920177,2370.5,2370.2,4.21893]
[1728053110992,0.8105,2370.5,2370.2,4.21893]
[1728053111706,4.98303,2370.7,2370.3,4.21885]
[1728053111921,4.21852,2370.5,2370.0,4.21938]
[1728053112073,4.21852,2370.5,2369.9,4.00753434]
[1728053112074,4.21837,2370.6,2370.2,4.21893]
[1728053112275,5.52389905,2370.6,2370.2,4.21893]
[1728053112718,5.52389905,2370.6,2370.0,0.7981]
[1728053112719,5.52395905,2370.6,2370.0,5.01738]
[1728053112925,4.21859,2370.5,2370.1,4.21921]
[1728053113214,4.21874,2370.4,2370.0,4.21928]
[1728053113396,4.20874,2370.4,2370.0,4.21928]
[1728053113805,4.20874,2370.4,2369.9,4.21948]
[1728053114113,4.21872,2370.4,2369.9,4.21958]
[1728053114408,4.84741591,2370.5,2370.1,4.21919]
[1728053114621,9.06606591,2370.5,2370.1,4.21919]
[1728053114918,9.06606591,2370.5,2369.6,3.8298]
[1728053114919,1.8614595,2370.4,2369.6,3.8298]
[1728053115072,4.21908,2370.2,2369.8,4.21976]
[1728053115272,6.0802195,2370.4,2370.0,4.21939]
[1728053115712,4.21888,2370.3,2369.9,4.21956]
[1728053115921,0.8243,2370.4,2370.1,4.2192]
[1728053116075,0.8243,2370.4,2369.6,0.8298]
[1728053116076,0.8285,2370.6,2370.2,4.21897]
[1728053116276,0.8285,2370.6,2370.0,5.02763]
[1728053116277,5.04686,2370.6,2370.1,4.2192]
[1728053116623,4.21859,2370.5,2370.1,4.2192]
[1728053116909,7.70226879,2370.6,2370.4,4.21869]
[1728053116910,0.8285,2370.6,2370.4,4.21869]
[1728053117121,0.8285,2370.6,2370.3,8.43747]
[1728053117321,3.42320879,2370.8,2370.5,4.21834]
[1728053117475,0.7678,2370.8,2370.5,4.21834]
[1728053117905,0.7678,2370.8,2370.6,4.21585]
[1728053118126,0.7678,2370.8,2370.6,8.43409]
[1728053118274,0.6614579,2370.9,2370.8,4.21798]
[1728053118479,0.6614579,2370.9,2370.7,4.21815]
[1728053118909,0.6614579,2370.9,2370.6,4.2183]
[1728053119214,0.6614579,2370.9,2370.7,4.21815]
[1728053119918,0.6614579,2370.9,2370.6,4.21831]
[1728053120378,0.6614579,2370.9,2370.7,4.21815]
[1728053120575,0.6614579,2370.9,2370.6,4.21827]
[1728053120796,0.6614579,2370.9,2370.6,8.4365]
[1728053121122,0.6614579,2370.9,2370.6,4.21823]
[1728053121413,5.02571,2370.8,2370.4,4.21869]
[1728053121618,5.02571,2370.8,2370.2,4.21902]
[1728053121619,3.46310879,2370.8,2370.2,4.21902]
[1728053121792,6.87372879,2370.7,2370.3,4.21876]
[1728053122114,2.10829691,2370.8,2370.6,4.21824]
[1728053122280,0.8077,2370.8,2370.6,4.21824]
[1728053122471,3.31686669,2370.9,2370.7,4.21816]
[1728053122680,0.6614579,2370.9,2370.6,4.2183]
[1728053123179,0.6614579,2370.9,2370.5,4.96969]
[1728053123375,4.8792679,2370.9,2370.5,4.21839]
[1728053123617,1.17523867,2370.8,2370.6,4.21823]
[1728053123913,0.6614579,2370.9,2370.6,4.21823]
[1728053124274,4.8793179,2370.9,2370.5,4.21849]
[1728053124474,9.0972579,2370.9,2370.4,8.43716]
[1728053124674,4.8793179,2370.9,2370.4,4.21856]
[1728053124939,4.21805,2370.8,2370.4,8.43717]
[1728053125075,4.21805,2370.8,2370.4,4.21856]
[1728053125417,0.8099,2370.7,2370.2,4.2189]
[1728053125579,4.2184,2370.6,2370.2,4.2189]
[1728053126190,4.21852,2370.5,2370.2,4.2189]
[1728053126493,4.21852,2370.5,2370.1,4.2192]
[1728053127053,4.21852,2370.5,2370.1,4.2191]
[1728053127346,4.21852,2370.5,2370.2,4.21904]
[1728053127524,4.65241446,2370.5,2370.1,4.2191]
[1728053127725,2.65649687,2370.6,2369.9,7.82033434]
[1728053128037,5.02822,2370.7,2370.4,4.21854]
[1728053128038,0.8099,2370.7,2370.4,4.21854]
[1728053128250,3.46639687,2370.7,2370.3,4.21883]
[1728053128555,7.68462687,2370.7,2370.3,4.21883]
[1728053128761,7.68635385,2370.7,2370.3,4.21883]
[1728053129346,9.25306914,2370.7,2370.3,4.21883]
[1728053129759,4.21835,2370.6,2370.0,4.21927]
[1728053129958,4.21861,2370.5,2370.0,4.21927]
[1728053130121,8.4373,2370.5,2370.1,4.21912]
[1728053130314,8.4373,2370.5,2369.9,3.8128]
[1728053130315,4.21888,2370.3,2369.9,4.21953]
[1728053130521,4.98813039,2370.3,2369.8,4.21958]
[1728053130742,4.21912,2370.2,2369.8,4.21958]
[1728053131117,4.21912,2370.2,2369.7,4.21987]
[1728053131316,7.64717167,2370.3,2369.9,4.21954]
[1728053131561,7.64717167,2370.3,2369.8,4.21967]
[1728053131759,5.06541717,2370.2,2369.6,4.99798]
[1728053132040,5.06539717,2370.2,2369.8,4.21972]
[1728053132243,4.97509,2370.1,2369.7,4.21991]
[1728053132557,4.21943,2370.0,2369.6,4.22001]
[1728053132875,4.21943,2370.0,2369.1,0.8098]
[1728053132876,4.22039,2369.5,2369.1,0.8098]
[1728053133023,1.175939,2369.4,2368.7,5.03142]
[1728053133215,8.44187,2369.2,2368.7,4.22157]
[1728053133569,0.7539,2369.2,2368.6,4.22188]
[1728053133860,0.7539,2369.2,2368.5,0.8098]
[1728053133861,4.00753434,2369.1,2368.2,5.03236]
[1728053134020,4.22174,2368.7,2368.2,5.03232]
[1728053134374,4.22174,2368.7,2368.2,4.22251]
[1728053134597,5.141451,2368.7,2368.0,0.7579]
[1728053134868,5.141451,2368.7,2368.2,4.22252]
[1728053135087,5.141451,2368.7,2368.1,4.22278]
[1728053135374,0.754,2368.4,2368.1,4.2227]
[1728053135527,0.754,2368.4,2368.0,4.22296]
[1728053135946,0.754,2368.4,2368.1,4.22279]
[1728053136348,0.8067,2368.6,2368.2,4.22257]
[1728053136660,0.8067,2368.6,2368.3,4.22234]
[1728053136847,0.8067,2368.6,2368.4,4.22223]
[1728053137051,0.8067,2368.6,2367.9,4.00753434]
[1728053137233,0.8067,2368.6,2368.2,4.22251]
[1728053137436,0.8067,2368.6,2367.9,4.22303]
[1728053137437,5.02862,2368.6,2367.9,4.22303]
[1728053137774,5.02862,2368.6,2368.1,4.22268]
[1728053138142,0.8067,2368.6,2368.2,4.22258]
[1728053138480,4.22176,2368.7,2368.2,4.22248]
[1728053138628,4.2217,2368.8,2368.3,4.22232]
[1728053138828,5.442019,2368.8,2368.4,4.22222]
[1728053139025,0.7602,2368.9,2368.6,4.22179]
[1728053139332,0.7602,2368.9,2368.6,4.22185]
[1728053139552,0.7602,2368.9,2368.5,4.22198]
[1728053139827,0.7602,2368.9,2368.3,4.22241]
[1728053139828,4.22169,2368.8,2368.3,4.22241]
[1728053140067,4.22169,2368.8,2368.3,8.44476]
[1728053140225,1.32109643,2368.7,2368.3,4.22235]
[1728053140427,1.32109643,2368.7,2367.9,8.04991]
[1728053140664,4.22165,2368.8,2368.3,4.22241]
[1728053140868,4.98158,2368.9,2368.5,4.22207]
[1728053141365,0.7602,2368.9,2368.8,4.22154]
[1728053141567,0.7576,2369.2,2369.1,4.22101]
[1728053141794,0.7576,2369.2,2368.8,4.2214]
[1728053142067,0.7576,2369.2,2368.4,5.04844]
[1728053142068,0.7576,2369.2,2368.9,4.22135]
[1728053142431,0.7576,2369.2,2368.9,4.22124]
[1728053142627,0.7576,2369.2,2368.8,4.22141]
[1728053143034,0.7576,2369.2,2368.9,4.22136]
[1728053143471,4.22197,2368.6,2368.0,0.8133]
[1728053143773,0.8068,2368.9,2368.3,4.22243]
[1728053143774,0.422197,2368.5,2368.3,4.22243]
[1728053143935,0.7813,2368.8,2368.4,4.22216]
[1728053144326,5.003,2368.8,2368.3,4.22242]
[1728053144533,4.22173,2368.7,2368.1,4.22268]
[1728053144730,4.00753434,2368.6,2367.8,0.8173]
[1728053144930,4.99285,2368.5,2368.1,4.22279]
[1728053145383,4.99285,2368.5,2367.8,0.8173]
[1728053145384,4.99278,2368.5,2368.0,4.22295]
[1728053145679,0.50470296,2368.7,2368.0,4.22295]
[1728053145680,0.8331,2368.7,2368.5,4.22207]
[1728053145890,3.0,2368.8,2368.5,4.22207]
[1728053146182,4.22149,2368.9,2368.5,4.22207]
[1728053146530,4.22154,2368.8,2368.4,4.22223]
[1728053146760,4.76203434,2369.0,2368.5,4.22205]
[1728053146964,8.98324434,2369.0,2368.5,4.22205]
[1728053147175,4.22138,2368.9,2368.5,4.22205]
[1728053147371,8.98324434,2369.0,2368.3,4.22236]
[1728053147372,4.22163,2368.8,2368.3,4.22236]
[1728053147669,0.7974,2368.7,2368.3,4.22236]
[1728053147879,5.01914,2368.7,2368.3,4.22236]
[1728053148350,5.01914,2368.7,2367.9,4.9936]
[1728053148351,5.01914,2368.7,2368.2,4.2225]
[1728053148837,0.7974,2368.7,2368.2,0.42225]
[1728053149040,4.99601,2369.0,2368.5,8.44389]
[1728053149245,4.22138,2368.9,2368.5,4.22192]
[1728053149462,4.22138,2368.9,2368.4,4.22223]
[1728053149676,4.22138,2368.9,2368.5,4.222]
[1728053149893,3.7748,2369.0,2368.6,4.2218]
[1728053150159,0.7748,2369.0,2368.6,4.2218]
[1728053150471,4.78233434,2369.0,2368.6,4.2218]
[1728053150816,4.00753434,2368.8,2368.2,4.22258]
[1728053151003,0.7748,2369.0,2368.2,4.22258]
[1728053151004,4.22192,2368.6,2368.2,4.22258]
[1728053151305,4.22227,2368.4,2368.0,4.22285]
[1728053151803,5.04058,2368.5,2368.1,4.22275]
[1728053152121,5.04058,2368.5,2368.1,4.22279]
[1728053152284,5.04057,2368.5,2368.0,4.22285]
[1728053152454,4.22227,2368.4,2367.9,4.22312]
[1728053152654,4.22227,2368.4,2367.8,4.22316]
[1728053152655,5.12709043,2368.4,2367.8,4.22316]
[1728053152957,5.04055,2368.5,2367.7,3.0]
[1728053153164,5.04055,2368.5,2368.1,4.22279]
[1728053153433,4.22227,2368.4,2368.0,4.22294]
[1728053153695,4.22233,2368.4,2367.9,4.22304]
[1728053153991,4.22233,2368.4,2368.0,4.22291]
[1728053154983,0.8184,2368.5,2368.1,4.22276]
[1728053155189,4.98665,2368.7,2368.1,4.22274]
[1728053155396,0.7649,2368.7,2368.0,4.22284]
[1728053155563,0.7649,2368.7,2368.4,4.22218]
[1728053155767,0.7649,2368.7,2368.2,4.22245]
[1728053155965,6.14743755,2368.7,2368.2,8.44498]
[1728053156271,6.14743755,2368.7,2368.1,4.22266]
[1728053156272,4.22217,2368.5,2368.1,4.22266]
[1728053156469,4.22201,2368.6,2368.1,4.22266]
[1728053156886,4.22211,2368.5,2368.1,4.22266]
[1728053157087,4.987,2368.5,2368.0,4.22288]
[1728053157307,0.7649,2368.5,2368.2,4.2226]
[1728053157517,4.88379155,2368.7,2368.3,4.22241]
[1728053157718,4.88379155,2368.7,2368.0,0.504658]
[1728053157917,4.88379155,2368.7,2368.2,4.22251]
[1728053158280,0.66205155,2368.7,2368.1,4.22267]
[1728053158589,4.88380155,2368.7,2368.3,4.22242]
[1728053158979,4.88380155,2368.7,2368.1,4.644947]
[1728053158980,4.22191,2368.6,2368.2,4.22253]
[1728053159185,5.02252,2368.5,2368.1,4.22268]
[1728053159403,4.22271,2368.2,2367.8,4.22324]
[1728053160225,4.22271,2368.2,2367.8,4.2232]
[1728053160426,5.0185,2368.1,2367.7,4.22342]
[1728053160720,0.7957,2368.1,2367.8,4.22324]
[1728053160966,0.7849,2368.5,2367.9,0.07651499]
[1728053161130,0.7849,2368.5,2368.2,4.22245]
[1728053161742,0.66205155,2368.7,2368.6,4.2219]
[1728053165534,4.66244939,2369.5,2368.8,4.22153]
[1728053165535,0.8037,2369.4,2368.8,4.22153]
[1728053165718,0.8037,2369.4,2369.3,4.22065]
[1728053166045,0.66184267,2369.5,2369.4,4.22047]
[1728053166416,0.66184267,2369.5,2369.2,4.2208]
[1728053166716,0.66184267,2369.5,2369.1,8.44172]
[1728053167254,4.88216267,2369.5,2369.1,4.22086]
[1728053167551,0.66184267,2369.5,2369.3,4.22052]
[1728053168653,0.66184267,2369.5,2369.4,4.22047]
[1728053169738,0.8149,2370.1,2369.9,4.21953]
[1728053170050,1.58415039,2370.3,2370.0,4.2194]
[1728053170221,0.8149,2370.3,2370.1,4.21921]
[1728053170418,0.8149,2370.3,2370.1,8.43836]
[1728053170656,1.47648669,2370.3,2370.1,4.21915]
[1728053171626,1.47648669,2370.3,2370.1,8.43827]
[1728053171830,1.47648669,2370.3,2370.1,8.43826]
[1728053172018,1.47648669,2370.3,2370.0,4.21939]
[1728053172228,0.66158669,2370.3,2370.1,4.21921]
[1728053172875,0.66158669,2370.3,2370.2,4.21905]
[1728053173975,0.66158669,2370.3,2370.1,4.21914]
[1728053174179,0.66158669,2370.3,2370.2,4.21905]
[1728053175033,0.66158669,2370.3,2370.1,4.21914]
[1728053176473,0.66158669,2370.3,2370.2,4.26145709]
[1728053176689,0.7967,2370.7,2370.2,0.04240709]
[1728053176833,0.66150311,2370.7,2370.6,4.21834]
[1728053177034,0.66150311,2370.7,2370.4,4.21866]
[1728053177896,0.66150311,2370.7,2370.4,4.21858]
[1728053178193,0.66150311,2370.7,2370.5,4.21844]
[1728053178345,0.66150311,2370.7,2370.1,5.424444]
[1728053178346,0.66150311,2370.7,2370.2,4.21895]
[1728053178680,0.66150311,2370.7,2370.2,4.21891]
[1728053178888,0.66150311,2370.7,2370.5,4.21841]
[1728053179787,0.66150311,2370.7,2370.3,8.43751]
[1728053179989,0.66150311,2370.7,2370.3,4.21875]
[1728053180199,0.66150311,2370.7,2370.3,8.43753]
[1728053180406,4.21854,2370.5,2369.9,0.7637]
[1728053180558,4.21854,2370.5,2369.9,4.98317]
[1728053180559,4.21861,2370.5,2369.9,4.98317]
[1728053180759,0.8021,2370.6,2370.2,4.21891]
[1728053181295,4.87968311,2370.7,2370.4,4.21858]
[1728053181296,0.66150311,2370.7,2370.4,4.21858]
[1728053181496,0.66150311,2370.7,2370.3,4.21887]
[1728053181699,0.66150311,2370.7,2370.4,4.21866]
[1728053181852,0.66150311,2370.7,2370.5,4.21848]
[1728053182902,0.66150311,2370.7,2370.4,4.21867]
[1728053183190,4.87973311,2370.7,2370.3,4.21882]
[1728053183414,5.86654542,2370.7,2370.2,4.21897]
[1728053183556,4.87973311,2370.7,2370.3,4.21878]
[1728053183952,4.21836,2370.6,2370.2,4.21897]
[1728053184153,4.21836,2370.6,2370.1,5.04038]
[1728053184398,4.21859,2370.5,2370.1,5.04038]
[1728053184583,4.21836,2370.6,2370.1,9.2595]
[1728053184584,8.43679,2370.6,2370.1,9.2595]
[1728053184763,4.21836,2370.6,2370.1,9.2595]
[1728053185295,4.21836,2370.6,2370.1,0.8213]
[1728053185296,4.21854,2370.5,2370.1,0.8213]
[1728053185461,4.21834,2370.6,2370.1,5.04038]
[1728053185660,4.21834,2370.6,2370.1,5.544418]
[1728053186192,4.87967311,2370.7,2370.3,4.21887]
[1728053186399,4.21845,2370.6,2370.2,4.21901]
[1728053186603,4.66927308,2370.7,2369.8,12.48013]
[1728053186760,4.219,2370.3,2369.8,12.48013]
[1728053186961,4.219,2370.3,2369.9,4.21957]
[1728053187269,0.7773,2370.4,2369.9,4.21949]
[1728053187472,0.7773,2370.4,2369.5,5.05135]
[1728053187473,0.7773,2370.4,2369.8,4.21959]
[1728053187669,0.7773,2370.4,2370.1,4.21921]
[1728053188205,0.7773,2370.4,2369.9,0.8311]
[1728053188206,4.21878,2370.4,2370.0,4.21928]
[1728053188408,4.2191,2370.2,2369.8,4.21972]
[1728053188614,4.21891,2370.3,2369.8,4.21972]
[1728053188615,4.21891,2370.3,2369.9,4.21951]
[1728053189120,4.21905,2370.2,2369.8,4.21972]
[1728053189330,4.21926,2370.1,2369.7,4.21989]
[1728053189901,4.21905,2370.2,2369.7,4.21989]
[1728053189902,4.21905,2370.2,2369.8,4.21967]
[1728053190084,4.21905,2370.2,2369.5,4.98639]
[1728053190085,4.21907,2370.2,2369.5,4.98639]
[1728053190290,4.21924,2370.1,2369.7,4.21981]
[1728053190615,5.18702073,2370.4,2370.0,4.21938]
[1728053190918,5.18697073,2370.4,2370.0,4.21938]
[1728053191421,5.18695073,2370.4,2370.0,4.21938]
[1728053191726,4.21903,2370.3,2369.9,4.21954]
[1728053192075,4.21887,2370.3,2369.9,8.43899]
[1728053192295,4.21873,2370.4,2369.9,8.43899]
[1728053192521,4.21873,2370.4,2369.9,4.21945]
[1728053192819,4.21897,2370.3,2369.9,4.21945]
[1728053193118,4.21897,2370.3,2369.9,8.43893]
[1728053193423,4.21872,2370.4,2370.0,4.2194]
[1728053193874,4.21872,2370.4,2369.7,4.2198]
[1728053194198,0.7773,2370.5,2369.7,4.2198]
[1728053194199,4.21894,2370.3,2369.8,4.21961]
[1728053194402,4.21894,2370.3,2369.9,4.21945]
[1728053194599,4.21873,2370.4,2370.0,4.21929]
[1728053194784,0.7773,2370.5,2369.9,4.21945]
[1728053194785,0.7773,2370.5,2369.9,4.21951]
[1728053195119,4.21879,2370.4,2370.0,4.2194]
[1728053195677,4.21879,2370.4,2369.6,8.22784997]
[1728053195890,4.21915,2370.2,2369.7,4.21985]
[1728053196090,4.21894,2370.3,2369.5,4.98642]
[1728053196091,4.21961,2369.9,2369.5,4.98642]
[1728053196381,0.7928,2370.0,2369.7,4.2198]
[1728053197528,0.7928,2370.0,2369.7,8.43965]
[1728053197689,4.21907,2370.2,2369.8,4.21969]
[1728053197883,5.00087,2370.2,2369.8,4.21969]
[1728053198391,0.7818,2370.2,2369.8,4.21969]
[1728053198731,4.21863,2370.5,2370.1,8.43825]
[1728053198927,0.7818,2370.6,2370.1,8.43825]
[1728053198928,5.00019,2370.6,2370.2,4.21898]
[1728053199228,0.7818,2370.6,2370.3,4.2188]
[1728053199823,0.66150311,2370.7,2370.5,4.2184]
[1728053200026,0.66150311,2370.7,2370.5,4.21837]
[1728053200325,0.66150311,2370.7,2370.6,4.21834]
[1728053200490,0.66150311,2370.7,2370.5,4.21837]
[1728053200691,0.66150311,2370.7,2369.9,4.21942]
[1728053200692,4.21884,2370.4,2369.9,4.21942]
[1728053200907,4.21884,2370.4,2370.0,4.21939]
[1728053201105,4.21884,2370.4,2369.8,5.00931]
[1728053201106,8.43766,2370.4,2369.8,5.00931]
[1728053201315,4.21904,2370.3,2369.8,5.00931]
[1728053201712,4.21904,2370.3,2369.9,4.21943]
[1728053202031,4.21906,2370.2,2369.8,0.7897]
[1728053202350,0.8103,2370.3,2369.8,0.7897]
[1728053202554,0.8103,2370.3,2369.9,4.21948]
[1728053202555,5.02923,2370.3,2369.9,4.21948]
[1728053203553,0.8103,2370.3,2370.0,4.2194]
[1728053203853,0.8103,2370.3,2369.9,4.2195]
[1728053203854,5.02919,2370.3,2369.9,4.2195]
[1728053204654,0.8103,2370.3,2370.0,4.21932]
[1728053205247,0.8103,2370.3,2369.8,0.7897]
[1728053205448,4.21924,2370.1,2369.7,4.21983]
[1728053206253,4.21908,2370.2,2369.8,4.21974]
[1728053206455,4.21926,2370.1,2369.6,5.04068]
[1728053206753,4.21948,2370.0,2369.6,5.04068]
[1728053206958,4.21959,2369.9,2369.5,4.22023]
[1728053207356,7.31,2370.5,2368.6,0.8058]
[1728053207357,4.00776997,2369.6,2368.6,0.8058]
[1728053207556,4.00776997,2369.6,2368.7,4.22161]
[1728053207557,4.22084,2369.2,2368.7,4.22161]
[1728053207757,8.44177,2369.2,2368.7,4.22161]
[1728053207964,0.7772,2369.3,2368.6,0.8058]
[1728053207965,4.22101,2369.1,2368.6,0.8058]
[1728053208274,4.22131,2369.0,2368.5,4.22205]
[1728053208456,4.22155,2368.8,2368.3,4.98263]
[1728053208657,4.22175,2368.7,2368.3,4.98263]
[1728053208858,4.22175,2368.7,2368.1,4.98297]
[1728053209056,4.22199,2368.6,2368.1,4.98303]
[1728053209294,4.22167,2368.8,2368.1,0.7603]
[1728053209499,4.2211,2369.1,2368.5,4.22197]
[1728053209655,5.0041,2369.1,2368.4,8.22989997]
[1728053209873,4.22084,2369.2,2368.8,4.22151]
[1728053210277,4.22173,2368.7,2368.3,4.22239]
[1728053210525,0.783,2368.8,2368.3,4.22239]
[1728053210677,5.00457,2368.8,2368.0,0.7621]
[1728053210997,5.00457,2368.8,2368.0,4.98506]
[1728053210998,4.22216,2368.5,2368.0,4.98506]
[1728053211718,5.0307,2368.4,2367.9,4.22305]
[1728053212123,4.22255,2368.3,2367.8,8.44649]
[1728053212290,5.0307,2368.4,2367.9,4.22314]
[1728053212696,4.22244,2368.3,2367.8,8.44645]
[1728053213422,5.0307,2368.4,2367.9,4.22312]
[1728053213423,0.8083,2368.4,2367.9,4.22312]
[1728053213725,4.22244,2368.3,2367.9,4.22312]
[1728053214088,4.22244,2368.3,2367.8,4.22322]
[1728053214422,5.03057,2368.4,2367.9,4.22306]
[1728053214621,0.8083,2368.4,2368.0,4.22294]
[1728053215423,0.8083,2368.4,2368.1,4.22276]
[1728053215631,0.7501,2368.7,2368.2,4.2226]
[1728053215780,0.7501,2368.7,2368.3,4.22235]
[1728053215985,0.7501,2368.7,2368.4,4.22224]
[1728053216219,4.22164,2368.8,2368.4,4.22224]
[1728053216407,8.44294,2368.9,2368.4,4.22224]
[1728053216720,4.22145,2368.9,2368.4,8.44441]
[1728053217086,5.04349,2369.0,2368.4,0.61674843]
[1728053217286,5.04349,2369.0,2368.6,4.22188]
[1728053217518,9.26485,2369.0,2368.5,4.22199]
[1728053217680,9.26482,2369.0,2368.5,4.22199]
[1728053217880,4.22147,2368.9,2368.4,0.61674843]
[1728053218077,5.04349,2369.0,2368.5,4.22206]
[1728053218320,5.04349,2369.0,2368.6,4.22182]
[1728053218625,0.8223,2369.0,2368.6,4.22182]
[1728053218925,5.0435,2369.0,2368.5,4.22197]
[1728053219131,0.8223,2369.0,2368.6,4.22179]
[1728053219341,0.8223,2369.0,2368.6,0.503382]
[1728053219626,7.31,2369.1,2368.6,0.503382]
[1728053219627,7.31,2369.1,2368.8,4.22143]
[1728053219821,0.8323,2369.2,2368.9,4.22135]
[1728053220613,0.7911,2369.4,2369.0,4.22116]
[1728053220998,12.32123,2369.6,2369.2,4.22074]
[1728053221215,4.21987,2369.8,2369.4,4.22045]
[1728053221414,4.21987,2369.8,2369.5,4.22028]
[1728053221415,0.7965,2369.8,2369.5,4.22028]
[1728053221604,0.7965,2369.8,2369.5,4.22019]
[1728053222328,4.00776997,2370.2,2369.5,4.22019]
[1728053222329,4.98315,2370.1,2369.5,4.22019]
[1728053222636,0.7639,2370.1,2369.6,4.22006]
[1728053222800,8.22657997,2370.4,2369.6,4.22006]
[1728053222801,0.7639,2370.4,2370.0,4.21928]
[1728053223141,8.43691,2370.6,2370.1,4.21911]
[1728053223433,4.21843,2370.6,2370.1,4.21911]
[1728053223593,4.21861,2370.5,2370.1,4.21911]
[1728053223797,4.21843,2370.6,2370.1,8.4382]
[1728053223992,1.37481584,2370.6,2370.2,4.219]
[1728053224216,1.37481584,2370.6,2370.1,4.21909]
[1728053224541,1.48520311,2370.7,2370.4,4.21866]
[1728053224688,1.48520311,2370.7,2370.3,4.21886]
[1728053225308,4.21842,2370.6,2370.1,4.2191]
[1728053225537,4.21842,2370.6,2370.1,8.43823]
[1728053225751,4.21842,2370.6,2370.2,4.21904]
[1728053226054,5.70339311,2370.7,2370.3,4.21886]
[1728053226352,5.70337311,2370.7,2370.3,4.21886]
[1728053226554,6.69550142,2370.7,2370.2,4.21895]
[1728053226850,6.69550142,2370.7,2370.3,4.21886]
[1728053227157,1.48520311,2370.7,2370.3,8.43765]
[1728053227509,1.48520311,2370.7,2370.4,4.21858]
[1728053227703,1.48520311,2370.7,2370.3,4.21879]
[1728053227909,1.48520311,2370.7,2370.3,4.2187]
[1728053228210,0.8237,2370.7,2370.1,4.2191]
[1728053228415,0.8237,2370.7,2369.7,0.7735]
[1728053228416,5.04186,2370.7,2370.3,4.21876]
[1728053228712,4.21842,2370.6,2370.1,4.21909]
[1728053229163,8.43692,2370.6,2370.1,4.21909]
[1728053229323,4.21852,2370.5,2370.1,4.21909]
[1728053229527,4.21842,2370.6,2370.1,8.43816]
[1728053229716,4.21842,2370.6,2370.1,4.21907]
[1728053229912,4.21852,2370.5,2370.0,4.2194]
[1728053230117,4.722632,2370.6,2370.0,4.2194]
[1728053230357,4.722632,2370.6,2370.0,4.21923]
[1728053230545,4.21855,2370.5,2370.0,8.43855]
[1728053231010,0.504212,2370.6,2370.0,4.21923]
[1728053231215,8.43683,2370.6,2370.0,8.43847]
[1728053231412,4.21835,2370.6,2370.2,4.21904]
[1728053231610,0.8237,2370.7,2370.3,4.21885]
[1728053231950,5.04195,2370.7,2370.2,8.438]
[1728053232318,0.8237,2370.7,2370.4,4.2186]
[1728053233161,5.01223,2371.0,2370.6,4.21833]
[1728053233446,0.7945,2371.0,2370.6,4.21833]
[1728053233751,5.01213,2371.0,2370.6,4.21833]
[1728053234445,5.01213,2371.0,2370.5,4.2185]
[1728053234979,5.01213,2371.0,2370.6,4.21832]
[1728053235136,9.22984,2371.0,2370.5,4.2185]
[1728053235339,4.21801,2370.8,2370.4,4.21869]
[1728053235567,4.21791,2370.9,2370.5,4.21847]
[1728053236078,5.935114,2371.0,2370.5,4.21847]
[1728053236284,4.21789,2370.9,2370.3,4.21877]
[1728053236435,4.21789,2370.9,2370.2,5.03603]
[1728053236436,4.21829,2370.7,2370.2,5.03603]
[1728053236635,4.21812,2370.8,2370.4,4.21869]
[1728053237233,4.21812,2370.8,2370.4,4.21868]
[1728053237633,8.43624,2370.8,2370.2,0.8171]
[1728053237837,8.43624,2370.8,2370.3,4.21879]
[1728053238086,4.21824,2370.7,2370.3,4.21879]
[1728053238247,4.21824,2370.7,2370.3,8.43758]
[1728053238447,4.21824,2370.7,2370.3,4.21879]
[1728053238637,8.43651,2370.7,2370.3,4.21879]
[1728053238833,4.21824,2370.7,2370.3,4.21879]
[1728053239238,4.21799,2370.8,2370.3,8.43757]
[1728053239489,4.21831,2370.7,2370.2,0.8171]
[1728053239641,5.2332604,2370.9,2370.2,0.8171]
[1728053239841,4.21824,2370.7,2370.3,4.21885]
[1728053240250,5.935234,2371.0,2370.4,4.21867]
[1728053240557,4.21809,2370.8,2370.4,4.21868]
[1728053240998,4.21823,2370.7,2370.2,4.21902]
[1728053241175,4.21836,2370.6,2370.0,0.8093]
[1728053241374,4.21836,2370.6,2369.6,4.2201]
[1728053241375,0.802,2370.5,2369.6,4.2201]
[1728053241555,4.21921,2370.2,2369.7,4.21992]
[1728053241757,4.21931,2370.1,2369.7,4.21992]
[1728053242460,0.7807,2370.0,2369.3,8.287]
[1728053242704,0.7807,2370.0,2369.4,4.22041]